[Event "Senior Men Russian Championship 2022_1L"]
[Site "Olginka, Russia"]
[Date "2022.09.29"]
[Round "6.5"]
[White "Kremenietsky, Anatoly M."]
[Black "Kidanov, Viktor"]
[Result "1-0"]
[TimeControl "90min/40moves+30min/end+30sec increment per move starting from move 1"]
[WhiteTitle "IM"]
[WhiteFideId "4103467"]
[BlackFideId "4147286"]
[WhiteElo "2241"]
[BlackElo "1611"]

1. d4 {[%clk 01:29:18]} {[%emt 00:01:41]} Nf6 {[%clk 01:30:40]} {[%emt
00:00:20]} 2. Nf3 {[%clk 01:29:18]} {[%emt 00:00:30]} e6 {[%clk 01:31:03]}
{[%emt 00:00:07]} 3. c4 {[%clk 01:29:25]} {[%emt 00:00:23]} d5 {[%clk
01:31:27]} {[%emt 00:00:06]} 4. g3 {[%clk 01:29:03]} {[%emt 00:00:52]} c6
{[%clk 01:28:40]} {[%emt 00:03:17]} 5. Qc2 {[%clk 01:24:38]} {[%emt 00:04:54]}
Bb4+ {[%clk 01:26:03]} {[%emt 00:03:08]} 6. Bd2 {[%clk 01:16:01]} {[%emt
00:09:07]} Bxd2+ {[%clk 01:24:58]} {[%emt 00:01:35]} 7. Nbxd2 {[%clk 01:16:18]}
{[%emt 00:00:13]} Qa5 {[%clk 01:22:11]} {[%emt 00:03:17]} 8. Bg2 {[%clk
01:11:47]} {[%emt 00:05:01]} O-O {[%clk 01:21:27]} {[%emt 00:01:14]} 9. O-O
{[%clk 01:12:06]} {[%emt 00:00:10]} Nbd7 {[%clk 01:20:14]} {[%emt 00:01:43]} 10.
e4 {[%clk 01:04:24]} {[%emt 00:08:12]} Qd8 {[%clk 01:13:51]} {[%emt 00:06:54]}
11. Rfd1 {[%clk 00:56:34]} {[%emt 00:08:20]} Rb8 {[%clk 01:10:18]} {[%emt
00:04:04]} 12. Ne5 {[%clk 00:55:14]} {[%emt 00:01:49]} Qc7 {[%clk 01:00:42]}
{[%emt 00:10:07]} 13. Nd3 {[%clk 00:33:01]} {[%emt 00:22:43]} Qb6 {[%clk
00:52:14]} {[%emt 00:08:58]} 14. c5 {[%clk 00:30:33]} {[%emt 00:02:58]} Qc7
{[%clk 00:52:19]} {[%emt 00:00:25]} 15. e5 {[%clk 00:29:44]} {[%emt 00:01:19]}
Ne8 {[%clk 00:51:15]} {[%emt 00:01:34]} 16. b4 {[%clk 00:30:11]} {[%emt
00:00:03]} b5 {[%clk 00:50:48]} {[%emt 00:00:57]} 17. Nb3 {[%clk 00:22:39]}
{[%emt 00:08:01]} g6 {[%clk 00:48:40]} {[%emt 00:02:39]} 18. f4 {[%clk
00:20:12]} {[%emt 00:02:56]} Ng7 {[%clk 00:47:48]} {[%emt 00:01:23]} 19. g4
{[%clk 00:20:31]} {[%emt 00:00:11]} Ra8 {[%clk 00:47:39]} {[%emt 00:00:39]} 20.
a4 {[%clk 00:20:25]} {[%emt 00:00:36]} Rb8 {[%clk 00:46:11]} {[%emt 00:01:58]}
21. Qd2 {[%clk 00:18:28]} {[%emt 00:02:27]} a6 {[%clk 00:46:05]} {[%emt
00:00:37]} 22. Rf1 {[%clk 00:17:39]} {[%emt 00:01:18]} f5 {[%clk 00:46:02]}
{[%emt 00:00:33]} 23. g5 {[%clk 00:17:22]} {[%emt 00:00:47]} Kf7 {[%clk
00:45:20]} {[%emt 00:01:13]} 24. axb5 {[%clk 00:16:42]} {[%emt 00:01:10]} Rxb5
{[%clk 00:45:22]} {[%emt 00:00:28]} 25. Ra4 {[%clk 00:16:39]} {[%emt 00:00:32]}
Nb8 {[%clk 00:45:37]} {[%emt 00:00:15]} 26. Rfa1 {[%clk 00:16:50]} {[%emt
00:00:19]} Rh8 {[%clk 00:45:30]} {[%emt 00:00:36]} 27. Nf2 {[%clk 00:17:06]}
{[%emt 00:00:14]} Qd8 {[%clk 00:42:09]} {[%emt 00:03:51]} 28. Bf1 {[%clk
00:16:04]} {[%emt 00:01:31]} h5 {[%clk 00:41:38]} {[%emt 00:01:02]} 29. Bxb5
{[%clk 00:15:30]} {[%emt 00:01:04]} cxb5 {[%clk 00:42:01]} {[%emt 00:00:07]} 30.
R4a3 {[%clk 00:15:35]} {[%emt 00:00:23]} Nc6 {[%clk 00:41:39]} {[%emt
00:00:54]} 31. Rxa6 {[%clk 00:15:06]} {[%emt 00:00:59]} Bxa6 {[%clk 00:41:18]}
{[%emt 00:00:51]} 32. Rxa6 {[%clk 00:15:35]} {[%emt 00:00:02]} Qc8 {[%clk
00:40:43]} {[%emt 00:01:05]} 33. Rb6 {[%clk 00:15:13]} {[%emt 00:00:52]} Qd7
{[%clk 00:38:23]} {[%emt 00:02:50]} 34. Na5 {[%clk 00:15:09]} {[%emt 00:00:33]}
Nd8 {[%clk 00:37:18]} {[%emt 00:01:35]} 35. Qd3 {[%clk 00:14:48]} {[%emt
00:00:48]} Re8 {[%clk 00:35:28]} {[%emt 00:02:23]} 36. Qxb5 {[%clk 00:15:05]}
{[%emt 00:00:14]} Qc7 {[%clk 00:33:59]} {[%emt 00:01:58]} 37. Nb7 {[%clk
00:09:12]} {[%emt 00:06:22]} Re7 {[%clk 00:33:53]} {[%emt 00:00:36]} 38. Nd6+
{[%clk 00:09:33]} {[%emt 00:00:06]} Kg8 {[%clk 00:31:29]} {[%emt 00:02:58]} 39.
Rb8 {[%clk 00:08:28]} {[%emt 00:01:35]} Kh7 {[%clk 00:30:31]} {[%emt 00:01:28]}
40. Qb6 {[%clk 00:35:56]} {[%emt 00:03:03]} Qxb6 {[%clk 00:58:16]} {[%emt
00:02:45]} 41. Rxb6 {[%clk 00:36:14]} {[%emt 00:00:11]} h4 {[%clk 00:54:04]}
{[%emt 00:04:41]} 42. b5 {[%clk 00:36:20]} {[%emt 00:00:24]} 1-0

[Event "Senior Men Russian Championship 2022_1L"]
[Site "Olginka, Russia"]
[Date "2022.09.29"]
[Round "6.6"]
[White "Dmitriev, Igor"]
[Black "Pak, Kil En"]
[Result "1/2-1/2"]
[TimeControl "90min/40moves+30min/end+30sec increment per move starting from move 1"]
[WhiteTitle "IM"]
[WhiteFideId "4114833"]
[BlackFideId "4131959"]
[WhiteElo "2174"]
[BlackElo "2207"]

1. c4 {[%clk 01:30:08]} {[%emt 00:00:50]} e6 {[%clk 01:30:52]} {[%emt
00:00:09]} 2. g3 {[%clk 01:30:01]} {[%emt 00:00:37]} d5 {[%clk 01:31:12]}
{[%emt 00:00:10]} 3. Nf3 {[%clk 01:29:36]} {[%emt 00:00:55]} Nf6 {[%clk
01:31:20]} {[%emt 00:00:22]} 4. Bg2 {[%clk 01:29:46]} {[%emt 00:00:20]} Be7
{[%clk 01:31:25]} {[%emt 00:00:26]} 5. O-O {[%clk 01:28:04]} {[%emt 00:02:12]}
O-O {[%clk 01:31:42]} {[%emt 00:00:13]} 6. Re1 {[%clk 01:27:24]} {[%emt
00:01:09]} Nbd7 {[%clk 01:30:47]} {[%emt 00:01:25]} 7. Qc2 {[%clk 01:24:32]}
{[%emt 00:03:21]} b6 {[%clk 01:26:10]} {[%emt 00:05:09]} 8. cxd5 {[%clk
01:24:07]} {[%emt 00:00:55]} Nxd5 {[%clk 01:26:32]} {[%emt 00:00:08]} 9. a3
{[%clk 01:23:15]} {[%emt 00:01:22]} Bb7 {[%clk 01:25:09]} {[%emt 00:01:53]} 10.
d3 {[%clk 01:18:32]} {[%emt 00:05:13]} c5 {[%clk 01:23:51]} {[%emt 00:01:48]}
11. e4 {[%clk 01:18:10]} {[%emt 00:00:52]} Nc7 {[%clk 01:22:16]} {[%emt
00:02:05]} 12. Nbd2 {[%clk 01:12:58]} {[%emt 00:05:42]} Rc8 {[%clk 01:19:58]}
{[%emt 00:02:49]} 13. Nc4 {[%clk 01:12:27]} {[%emt 00:01:00]} Nb8 {[%clk
01:19:22]} {[%emt 00:01:06]} 14. Bd2 {[%clk 01:06:28]} {[%emt 00:06:28]} Nc6
{[%clk 01:18:05]} {[%emt 00:01:48]} 15. a4 {[%clk 01:05:33]} {[%emt 00:01:25]}
Na6 {[%clk 01:16:06]} {[%emt 00:02:29]} 16. Qb3 {[%clk 01:01:55]} {[%emt
00:04:07]} Nab4 {[%clk 01:10:48]} {[%emt 00:05:48]} 17. Bf1 {[%clk 00:59:46]}
{[%emt 00:02:38]} Bf6 {[%clk 01:04:29]} {[%emt 00:06:50]} 18. Bc3 {[%clk
00:59:47]} {[%emt 00:00:28]} Bd4 {[%clk 01:04:24]} {[%emt 00:00:35]} 19. Rad1
{[%clk 00:59:07]} {[%emt 00:01:10]} Ba6 {[%clk 01:01:46]} {[%emt 00:03:08]} 20.
Bxb4 {[%clk 00:52:09]} {[%emt 00:07:28]} Nxb4 {[%clk 00:58:10]} {[%emt
00:04:06]} 21. Bg2 {[%clk 00:50:48]} {[%emt 00:01:50]} Nc6 {[%clk 00:54:30]}
{[%emt 00:04:10]} 22. e5 {[%clk 00:50:17]} {[%emt 00:01:01]} Bxc4 {[%clk
00:54:22]} {[%emt 00:00:37]} 23. dxc4 {[%clk 00:49:48]} {[%emt 00:00:59]} Qc7
{[%clk 00:54:32]} {[%emt 00:00:20]} 24. Nxd4 {[%clk 00:49:17]} {[%emt
00:01:01]} Nxd4 {[%clk 00:54:41]} {[%emt 00:00:21]} 25. Qd3 {[%clk 00:49:28]}
{[%emt 00:00:19]} a5 {[%clk 00:54:06]} {[%emt 00:01:05]} 26. Qe4 {[%clk
00:49:08]} {[%emt 00:00:50]} Rcd8 {[%clk 00:54:23]} {[%emt 00:00:14]} 27. h4
{[%clk 00:48:46]} {[%emt 00:00:51]} Qe7 {[%clk 00:54:14]} {[%emt 00:00:39]} 28.
Bf1 {[%clk 00:47:23]} {[%emt 00:01:52]} Rd7 {[%clk 00:53:50]} {[%emt 00:00:54]}
29. Bd3 {[%clk 00:46:18]} {[%emt 00:01:35]} g6 {[%clk 00:54:10]} {[%emt
00:00:11]} 30. Qe3 {[%clk 00:45:27]} {[%emt 00:01:20]} Rfd8 {[%clk 00:53:51]}
{[%emt 00:00:49]} 31. Be4 {[%clk 00:45:26]} {[%emt 00:00:31]} Qe8 {[%clk
00:51:40]} {[%emt 00:02:39]} 32. Kg2 {[%clk 00:44:57]} {[%emt 00:01:00]} Nf5
{[%clk 00:50:33]} {[%emt 00:01:39]} 33. Qb3 {[%clk 00:45:09]} {[%emt 00:00:17]}
Rxd1 {[%clk 00:50:27]} {[%emt 00:00:36]} 34. Rxd1 {[%clk 00:45:36]} {[%emt
00:00:02]} Rxd1 {[%clk 00:50:46]} {[%emt 00:00:12]} 35. Qxd1 {[%clk 00:46:04]}
{[%emt 00:00:01]} Nd4 {[%clk 00:51:06]} {[%emt 00:00:10]} 36. f4 {[%clk
00:44:58]} {[%emt 00:01:36]} Kf8 {[%clk 00:47:29]} {[%emt 00:04:07]} 37. h5
{[%clk 00:39:41]} {[%emt 00:05:47]} Qd8 {[%clk 00:46:11]} {[%emt 00:01:48]} 38.
Kh3 {[%clk 00:39:48]} {[%emt 00:00:24]} Kg7 {[%clk 00:45:56]} {[%emt 00:00:45]}
39. Kg4 {[%clk 00:39:48]} {[%emt 00:00:28]} Qd7 {[%clk 00:40:14]} {[%emt
00:06:14]} 40. Kg5 {[%clk 01:08:35]} {[%emt 00:01:42]} Qd8+ {[%clk 01:08:11]}
{[%emt 00:02:34]} 41. Kg4 {[%clk 01:08:54]} {[%emt 00:00:10]} Kf8 {[%clk
01:05:59]} {[%emt 00:02:43]} 42. Kh3 {[%clk 01:05:31]} {[%emt 00:03:52]} Kg7
{[%clk 01:05:51]} {[%emt 00:00:39]} 43. Kg4 {[%clk 01:05:45]} {[%emt 00:00:15]}
Qd7 {[%clk 01:01:59]} {[%emt 00:04:22]} 44. Kg5 {[%clk 01:05:54]} {[%emt
00:00:21]} Qd8+ {[%clk 01:02:19]} {[%emt 00:00:11]} 1/2-1/2

[Event "Senior Men Russian Championship 2022_1L"]
[Site "Olginka, Russia"]
[Date "2022.09.29"]
[Round "6.7"]
[White "Kiriushin, Vladimir"]
[Black "Kolomensky, Vladimir"]
[Result "0-1"]
[TimeControl "90min/40moves+30min/end+30sec increment per move starting from move 1"]
[BlackTitle "FM"]
[WhiteFideId "4150848"]
[BlackFideId "4123565"]
[WhiteElo "1954"]
[BlackElo "2055"]

1. d4 {[%clk 01:30:57]} {[%emt 00:00:02]} Nf6 {[%clk 01:30:53]} {[%emt
00:00:08]} 2. c4 {[%clk 01:31:21]} {[%emt 00:00:06]} e6 {[%clk 01:31:16]}
{[%emt 00:00:07]} 3. Nf3 {[%clk 01:31:48]} {[%emt 00:00:03]} Bb4+ {[%clk
01:31:32]} 4. Bd2 {[%clk 01:31:48]} Qe7 {[%clk 01:31:32]} 5. g3 {[%clk
01:31:48]} Nc6 {[%clk 01:31:32]} 6. Bg2 {[%clk 01:31:48]} Bxd2+ {[%clk
01:31:32]} 7. Nbxd2 {[%clk 01:31:48]} d6 {[%clk 01:31:32]} 8. O-O {[%clk
01:31:48]} e5 {[%clk 01:31:32]} 9. e3 {[%clk 01:31:48]} O-O {[%clk 01:31:32]}
10. d5 {[%clk 01:31:48]} Nb8 {[%clk 01:31:32]} 11. Qc2 {[%clk 01:31:48]} a5
{[%clk 01:31:32]} 12. Nb1 {[%clk 01:31:48]} Na6 {[%clk 01:31:32]} 13. Nc3
{[%clk 01:31:48]} Bd7 {[%clk 01:31:32]} 14. a3 {[%clk 01:31:48]} c6 {[%clk
01:31:32]} 15. Rfe1 {[%clk 01:31:48]} cxd5 {[%clk 01:31:32]} 16. cxd5 {[%clk
01:31:48]} Rfc8 {[%clk 01:31:32]} 17. Rac1 {[%clk 01:31:48]} b5 {[%clk
01:31:32]} 18. Qb3 {[%clk 01:31:48]} Nc5 {[%clk 01:31:32]} 19. Qd1 {[%clk
01:31:48]} e4 {[%clk 01:31:32]} 20. Nd4 {[%clk 01:31:48]} Nd3 {[%clk 01:31:32]}
21. Qb3 {[%clk 01:31:48]} b4 {[%clk 01:31:32]} 22. axb4 {[%clk 01:31:48]} axb4
{[%clk 01:31:32]} 23. Nc6 {[%clk 01:31:48]} Be6 {[%clk 01:31:32]} 24. Nxe4
{[%clk 01:31:48]} Nxc1 {[%clk 01:31:32]} 25. Rxc1 {[%clk 01:31:48]} Bd7 {[%clk
01:31:32]} 26. Nxf6+ {[%clk 01:31:48]} Qxf6 {[%clk 01:31:32]} 27. Ne7+ {[%clk
01:31:48]} Qxe7 {[%clk 01:31:32]} 0-1

[Event "Senior Men Russian Championship 2022_1L"]
[Site "Olginka, Russia"]
[Date "2022.09.29"]
[Round "6.8"]
[White "Birjukov, Sergey"]
[Black "Subbotin, Andrey"]
[Result "1/2-1/2"]
[TimeControl "90min/40moves+30min/end+30sec increment per move starting from move 1"]
[WhiteTitle "FM"]
[BlackFideId "4196210"]
[WhiteElo "1867"]
[BlackElo "1775"]

1. Nf3 {[%clk 01:30:49]} {[%emt 00:00:09]} f5 {[%clk 01:30:54]} {[%emt
00:00:07]} 2. b3 {[%clk 01:30:43]} {[%emt 00:00:35]} d6 {[%clk 01:31:07]}
{[%emt 00:00:18]} 3. d4 {[%clk 01:30:29]} {[%emt 00:00:42]} Nf6 {[%clk
01:31:30]} {[%emt 00:00:08]} 4. Bb2 {[%clk 01:30:16]} {[%emt 00:00:43]} g6
{[%clk 01:31:58]} {[%emt 00:00:03]} 5. c4 {[%clk 01:25:39]} {[%emt 00:05:06]}
Bg7 {[%clk 01:32:26]} {[%emt 00:00:02]} 6. Qc2 {[%clk 01:24:43]} {[%emt
00:01:24]} O-O {[%clk 01:32:51]} {[%emt 00:00:07]} 7. Nbd2 {[%clk 01:24:21]}
{[%emt 00:00:51]} Nc6 {[%clk 01:30:33]} {[%emt 00:02:50]} 8. a3 {[%clk
01:23:12]} {[%emt 00:01:38]} e6 {[%clk 01:28:57]} {[%emt 00:02:06]} 9. e3
{[%clk 01:21:29]} {[%emt 00:02:12]} Qe7 {[%clk 01:28:21]} {[%emt 00:01:07]} 10.
Be2 {[%clk 01:20:49]} {[%emt 00:01:10]} e5 {[%clk 01:28:12]} {[%emt 00:00:40]}
11. d5 {[%clk 01:20:38]} {[%emt 00:00:40]} Nd8 {[%clk 01:28:32]} {[%emt
00:00:10]} 12. O-O {[%clk 01:10:54]} {[%emt 00:10:15]} 1/2-1/2

[Event "Senior Men Russian Championship 2022_1L"]
[Site "Olginka, Russia"]
[Date "2022.09.30"]
[Round "7.1"]
[White "Rodin, Mihail"]
[Black "Kovalev, Evgeny"]
[Result "0-1"]
[TimeControl "90min/40moves+30min/end+30sec increment per move starting from move 1"]
[WhiteFideId "4113160"]
[WhiteElo "2320"]
[BlackElo "2048"]

1. e4 {[%clk 01:30:57]} {[%emt 00:00:02]} c6 {[%clk 01:30:54]} {[%emt
00:00:07]} 2. d4 {[%clk 01:30:58]} {[%emt 00:00:29]} d5 {[%clk 01:31:17]}
{[%emt 00:00:07]} 3. e5 {[%clk 01:31:25]} {[%emt 00:00:03]} c5 {[%clk
01:31:40]} {[%emt 00:00:07]} 4. dxc5 {[%clk 01:31:40]} {[%emt 00:00:15]} Nc6
{[%clk 01:31:54]} {[%emt 00:00:16]} 5. a3 {[%clk 01:31:59]} {[%emt 00:00:10]}
e6 {[%clk 01:28:21]} {[%emt 00:04:03]} 6. b4 {[%clk 01:32:22]} {[%emt
00:00:08]} Nxe5 {[%clk 01:28:13]} {[%emt 00:00:38]} 7. Bb2 {[%clk 01:32:48]}
{[%emt 00:00:03]} Nc6 {[%clk 01:26:42]} {[%emt 00:02:01]} 8. Nf3 {[%clk
01:33:09]} {[%emt 00:00:08]} Nf6 {[%clk 01:26:59]} {[%emt 00:00:15]} 9. Bd3
{[%clk 01:33:27]} {[%emt 00:00:11]} Be7 {[%clk 01:26:10]} {[%emt 00:01:19]} 10.
O-O {[%clk 01:33:41]} {[%emt 00:00:16]} O-O {[%clk 01:26:26]} {[%emt 00:00:15]}
11. Nbd2 {[%clk 01:34:00]} {[%emt 00:00:10]} a5 {[%clk 01:23:08]} {[%emt
00:03:49]} 12. Qb1 {[%clk 01:33:09]} {[%emt 00:01:21]} axb4 {[%clk 01:18:14]}
{[%emt 00:05:25]} 13. axb4 {[%clk 01:33:18]} {[%emt 00:00:20]} Rxa1 {[%clk
01:18:32]} {[%emt 00:00:12]} 14. Bxa1 {[%clk 01:33:46]} {[%emt 00:00:02]} Qc7
{[%clk 01:18:42]} {[%emt 00:00:20]} 15. c4 {[%clk 01:32:37]} {[%emt 00:01:39]}
dxc4 {[%clk 01:15:24]} {[%emt 00:03:48]} 16. Nxc4 {[%clk 01:33:04]} {[%emt
00:00:02]} h6 {[%clk 01:13:50]} {[%emt 00:02:05]} 17. Qb2 {[%clk 01:26:55]}
{[%emt 00:06:39]} Rd8 {[%clk 01:11:26]} {[%emt 00:02:53]} 18. Bb1 {[%clk
01:26:42]} {[%emt 00:00:43]} Qf4 {[%clk 01:10:59]} {[%emt 00:00:56]} 19. Qb3
{[%clk 01:19:58]} {[%emt 00:07:15]} b5 {[%clk 01:03:23]} {[%emt 00:08:07]} 20.
cxb6 {[%clk 01:18:03]} {[%emt 00:02:26]} Nxb4 {[%clk 00:58:54]} {[%emt
00:04:57]} 21. Be5 {[%clk 01:16:31]} {[%emt 00:02:01]} Qg4 {[%clk 00:58:47]}
{[%emt 00:00:39]} 22. Bc7 {[%clk 01:16:39]} {[%emt 00:00:21]} Rf8 {[%clk
00:47:57]} {[%emt 00:11:20]} 23. Nd6 {[%clk 01:14:55]} {[%emt 00:02:13]} Ba6
{[%clk 00:44:31]} {[%emt 00:03:56]} 24. h3 {[%clk 01:14:53]} {[%emt 00:00:32]}
Qh5 {[%clk 00:43:31]} {[%emt 00:01:31]} 25. Qxb4 {[%clk 01:13:44]} {[%emt
00:01:39]} Bxf1 {[%clk 00:42:23]} {[%emt 00:01:38]} 26. Kxf1 {[%clk 01:14:05]}
{[%emt 00:00:08]} Nd5 {[%clk 00:39:59]} {[%emt 00:02:54]} 27. Qa5 {[%clk
01:14:09]} {[%emt 00:00:26]} Ne3+ {[%clk 00:39:33]} {[%emt 00:00:57]} 28. fxe3
{[%clk 01:14:19]} {[%emt 00:00:20]} Qxa5 {[%clk 00:39:58]} {[%emt 00:00:05]} 29.
Nc4 {[%clk 01:14:25]} {[%emt 00:00:24]} Qc5 {[%clk 00:37:19]} {[%emt 00:03:08]}
30. Bd3 {[%clk 01:14:36]} {[%emt 00:00:19]} f6 {[%clk 00:35:17]} {[%emt
00:02:33]} 31. Nd4 {[%clk 01:14:44]} {[%emt 00:00:22]} Qd5 {[%clk 00:32:58]} 32.
Nd2 {[%clk 01:14:44]} Qa2 {[%clk 00:32:58]} 33. N4f3 {[%clk 01:14:44]} Qb2
{[%clk 00:32:58]} 34. Bc4 {[%clk 01:14:44]} Kf7 {[%clk 00:32:58]} 35. Ke2
{[%clk 01:14:44]} Bc5 {[%clk 00:32:58]} 36. Bb3 {[%clk 01:14:44]} Qc3 {[%clk
00:32:58]} 37. Nd4 {[%clk 01:14:44]} Bxd4 {[%clk 00:32:58]} 38. exd4 {[%clk
01:14:44]} Qxd4 {[%clk 00:32:58]} 39. b7 {[%clk 01:14:44]} Qb4 {[%clk
00:32:58]} 0-1

[Event "Senior Men Russian Championship 2022_1L"]
[Site "Olginka, Russia"]
[Date "2022.09.30"]
[Round "7.2"]
[White "Kurdakov, Yuri"]
[Black "Kremenietsky, Anatoly M."]
[Result "1/2-1/2"]
[TimeControl "90min/40moves+30min/end+30sec increment per move starting from move 1"]
[WhiteTitle "FM"]
[BlackTitle "IM"]
[WhiteFideId "4120493"]
[BlackFideId "4103467"]
[WhiteElo "2085"]
[BlackElo "2241"]

1. c4 {[%clk 01:30:57]} {[%emt 00:00:02]} e6 {[%clk 01:29:22]} {[%emt
00:01:38]} 2. Nc3 {[%clk 01:31:16]} {[%emt 00:00:11]} d5 {[%clk 01:29:41]}
{[%emt 00:00:12]} 3. d4 {[%clk 01:31:37]} {[%emt 00:00:08]} Nf6 {[%clk
01:29:59]} {[%emt 00:00:12]} 4. Bg5 {[%clk 01:32:01]} {[%emt 00:00:06]} Be7
{[%clk 01:30:19]} {[%emt 00:00:11]} 5. Nf3 {[%clk 01:32:24]} {[%emt 00:00:07]}
O-O {[%emt 00:00:08]} 6. e3 {[%emt 00:00:10]} b6 {[%clk 01:30:14]} {[%emt
00:00:18]} 7. cxd5 {[%clk 01:32:43]} {[%emt 00:00:11]} exd5 {[%clk 01:30:32]}
{[%emt 00:00:12]} 8. Be2 {[%clk 01:33:02]} {[%emt 00:00:12]} Be6 {[%clk
01:30:51]} {[%emt 00:00:10]} 9. O-O {[%clk 01:33:23]} {[%emt 00:00:08]} h6
{[%clk 01:30:59]} {[%emt 00:00:22]} 10. Bh4 {[%clk 01:33:44]} {[%emt 00:00:10]}
c5 {[%clk 01:31:18]} {[%emt 00:00:11]} 11. Rc1 {[%clk 01:33:54]} {[%emt
00:00:20]} Nbd7 {[%clk 01:31:31]} {[%emt 00:00:17]} 1/2-1/2

[Event "Senior Men Russian Championship 2022_1L"]
[Site "Olginka, Russia"]
[Date "2022.09.30"]
[Round "7.3"]
[White "Murzin, Lenar"]
[Black "Piankov, Evgenij"]
[Result "1-0"]
[TimeControl "90min/40moves+30min/end+30sec increment per move starting from move 1"]
[WhiteTitle "IM"]
[BlackTitle "IM"]
[WhiteFideId "4116461"]
[BlackFideId "14100525"]
[WhiteElo "2000"]
[BlackElo "2165"]

1. d4 {[%clk 01:30:22]} {[%emt 00:00:37]} d5 {[%clk 01:30:47]} {[%emt
00:00:12]} 2. c4 {[%clk 01:30:44]} {[%emt 00:00:09]} c6 {[%clk 01:31:03]}
{[%emt 00:00:13]} 3. cxd5 {[%clk 01:31:05]} {[%emt 00:00:10]} cxd5 {[%clk
01:31:30]} {[%emt 00:00:02]} 4. Bf4 {[%clk 01:31:25]} {[%emt 00:00:11]} Nc6
{[%clk 01:31:48]} {[%emt 00:00:12]} 5. e3 {[%clk 01:31:46]} {[%emt 00:00:09]}
e6 {[%clk 01:31:24]} {[%emt 00:00:54]} 6. Nc3 {[%clk 01:31:59]} {[%emt
00:00:17]} Bd6 {[%clk 01:31:22]} {[%emt 00:00:31]} 7. Bxd6 {[%clk 01:31:26]}
{[%emt 00:01:04]} Qxd6 {[%clk 01:31:49]} {[%emt 00:00:03]} 8. f4 {[%clk
01:31:22]} {[%emt 00:00:34]} Nf6 {[%clk 01:32:01]} {[%emt 00:00:18]} 9. Bd3
{[%clk 01:31:35]} {[%emt 00:00:17]} a6 {[%clk 01:31:37]} {[%emt 00:00:54]} 10.
Nf3 {[%clk 01:31:39]} {[%emt 00:00:26]} b5 {[%clk 01:31:46]} {[%emt 00:00:22]}
11. O-O {[%clk 01:31:07]} {[%emt 00:01:01]} Bb7 {[%clk 01:31:46]} {[%emt
00:00:31]} 12. Ne5 {[%clk 01:28:59]} {[%emt 00:02:38]} Ne7 {[%clk 01:30:48]}
{[%emt 00:01:27]} 13. Rc1 {[%clk 01:26:02]} {[%emt 00:03:27]} O-O {[%clk
01:30:40]} {[%emt 00:00:38]} 14. Qf3 {[%clk 01:25:43]} {[%emt 00:00:49]} Rac8
{[%clk 01:26:51]} {[%emt 00:04:19]} 15. a3 {[%clk 01:22:11]} {[%emt 00:04:02]}
b4 {[%clk 01:25:09]} {[%emt 00:02:13]} 16. axb4 {[%clk 01:20:02]} {[%emt
00:02:40]} Qxb4 {[%clk 01:23:23]} {[%emt 00:02:15]} 17. Rc2 {[%clk 01:15:41]}
{[%emt 00:04:50]} Rc7 {[%clk 01:15:25]} {[%emt 00:08:28]} 18. Rfc1 {[%clk
01:15:17]} {[%emt 00:00:54]} Rfc8 {[%clk 01:07:20]} {[%emt 00:08:35]} 19. Qe2
{[%clk 01:10:37]} {[%emt 00:05:10]} a5 {[%clk 01:02:51]} {[%emt 00:05:00]} 20.
h3 {[%clk 01:10:23]} {[%emt 00:00:43]} Ne4 {[%clk 00:43:42]} {[%emt 00:19:39]}
21. Kh2 {[%clk 01:07:42]} {[%emt 00:03:11]} f5 {[%clk 00:31:39]} {[%emt
00:12:33]} 22. Nb5 {[%clk 01:03:49]} {[%emt 00:04:23]} Rxc2 {[%clk 00:31:25]}
{[%emt 00:00:44]} 23. Rxc2 {[%clk 01:04:10]} {[%emt 00:00:08]} Ba6 {[%clk
00:19:47]} {[%emt 00:12:09]} 24. Rxc8+ {[%clk 01:02:19]} {[%emt 00:02:21]} Nxc8
{[%clk 00:17:28]} {[%emt 00:02:49]} 25. Qc2 {[%clk 01:00:09]} {[%emt 00:02:39]}
Qe7 {[%clk 00:15:09]} {[%emt 00:02:50]} 26. Bxe4 {[%clk 00:57:36]} {[%emt
00:03:03]} fxe4 {[%clk 00:14:17]} {[%emt 00:01:21]} 27. Qc6 {[%clk 00:57:19]}
{[%emt 00:00:46]} Bxb5 {[%clk 00:13:33]} {[%emt 00:01:16]} 28. Qxb5 {[%clk
00:57:36]} {[%emt 00:00:13]} Nd6 {[%clk 00:10:49]} {[%emt 00:03:14]} 29. Qxa5
{[%clk 00:54:55]} {[%emt 00:03:11]} g5 {[%clk 00:11:03]} {[%emt 00:00:14]} 30.
fxg5 {[%clk 00:45:16]} {[%emt 00:10:09]} Nf5 {[%clk 00:11:02]} {[%emt
00:00:30]} 31. Qc5 {[%clk 00:39:15]} {[%emt 00:06:30]} Qxg5 {[%clk 00:03:28]}
{[%emt 00:08:06]} 32. Qc8+ {[%clk 00:39:16]} {[%emt 00:00:30]} Kg7 {[%clk
00:03:57]} {[%emt 00:00:01]} 33. Qc7+ {[%clk 00:35:45]} {[%emt 00:04:01]} Qe7
{[%clk 00:03:50]} {[%emt 00:00:37]} 34. Qxe7+ {[%clk 00:35:37]} {[%emt
00:00:38]} Nxe7 {[%clk 00:04:18]} {[%emt 00:00:02]} 35. g4 {[%clk 00:35:10]}
{[%emt 00:00:57]} Nc8 {[%clk 00:04:46]} {[%emt 00:00:02]} 36. Kg3 {[%clk
00:35:17]} {[%emt 00:00:23]} h6 {[%clk 00:04:21]} {[%emt 00:00:55]} 37. Kf4
{[%clk 00:35:16]} {[%emt 00:00:30]} Kf6 {[%clk 00:04:34]} {[%emt 00:00:17]} 38.
h4 {[%clk 00:35:25]} {[%emt 00:00:21]} Nd6 {[%clk 00:04:45]} {[%emt 00:00:19]}
39. b3 {[%clk 00:34:56]} {[%emt 00:01:00]} Nb5 {[%clk 00:04:42]} {[%emt
00:00:33]} 40. g5+ {[%clk 01:04:52]} {[%emt 00:00:33]} hxg5+ {[%clk 00:35:10]}
{[%emt 00:00:03]} 41. hxg5+ {[%clk 01:05:16]} {[%emt 00:00:07]} Kg7 {[%clk
00:35:16]} {[%emt 00:00:23]} 42. b4 {[%clk 01:04:24]} {[%emt 00:01:23]} Nd6
{[%clk 00:34:46]} {[%emt 00:00:59]} 43. Nc6 {[%emt 00:06:35]} 1-0